fUSD/lending_fUSD_20260523
["ID","MTS","AMOUNT","RATE_DAILY","PERIOD"]
[422859032,1779534655000,-500.0,0.00013698,2]
[422859028,1779534655000,-500.0,0.00013698,2]
[422859027,1779534655000,-500.0,0.00013698,2]
[422859034,1779534655000,-500.0,0.00013698,2]
[422859023,1779534655000,-555.06801264,0.00013698,2]
[422859031,1779534655000,-500.0,0.00013698,2]
[422859029,1779534655000,-500.0,0.00013698,2]
[422859030,1779534655000,-500.0,0.00013698,2]
[422859025,1779534655000,-500.0,0.00013698,2]
[422859024,1779534655000,-500.0,0.00013698,2]
[422859026,1779534655000,-500.0,0.00013698,2]
[422859075,1779534656000,-380.75749284,0.00014249,2]
[422859078,1779534656000,-166.66,0.00014384,2]
[422859079,1779534656000,-1000.0,0.00014452,2]
[422859077,1779534656000,-159.01189811,0.000143,2]
[422859082,1779534656000,-2000.0,0.00014599,7]
[422859083,1779534656000,-10900.0,0.000146,5]
[422859081,1779534656000,-500.0,0.00014497,8]
[422859080,1779534656000,-1700.0,0.00014452,2]
[422859088,1779534656000,-2100.0,0.000147,5]
[422859086,1779534656000,-38701.7143703,0.00014659,2]
[422859084,1779534656000,-294.9258728,0.00014658,2]
[422859087,1779534656000,-1090.93504737,0.000147,2]
[422859093,1779534656000,-11933.38056595,0.000148,2]
[422859070,1779534656000,-354.93,0.00014,2]
[422859072,1779534656000,-166.66,0.0001411,2]
[422859071,1779534656000,-2314.0,0.0001404,2]
[422859068,1779534656000,-2000.0,0.00014,2]
[422859073,1779534656000,-1672.75403578,0.00014134,2]
[422859069,1779534656000,-1505.0,0.00014,2]
[422859066,1779534656000,-2000.0,0.00014,2]
[422859063,1779534656000,-308.96,0.00014,2]
[422859065,1779534656000,-250.0,0.00014,2]
[422859074,1779534656000,-166.66,0.00014247,2]
[422859067,1779534656000,-2000.0,0.00014,2]
[422859064,1779534656000,-3593.47146165,0.00014,2]
[422859076,1779534656000,-8835.8930792,0.0001425,2]
[422859091,1779534656000,-1116.93168818,0.00014799,5]
[422859085,1779534656000,-19734.8078581,0.00014658,2]
[422859090,1779534656000,-580.14502158,0.0001479,2]
[422859118,1779534656000,-552.84085391,0.00010963,2]
[422859117,1779534656000,-598.50088438,0.00015,2]
[422859116,1779534656000,-144586.58260696,0.00015,2]
[422859113,1779534656000,-345.94767076,0.00014999,9]
[422859115,1779534656000,-16625.89495303,0.00014999,3]
[422859114,1779534656000,-25000.0,0.00014999,3]
[422859112,1779534656000,-25000.0,0.0001499,3]
[422859110,1779534656000,-580.14502158,0.0001499,2]
[422859104,1779534656000,-1672.75403578,0.000149,2]
[422859109,1779534656000,-400.0,0.0001497,2]
[422859106,1779534656000,-150.0,0.00014924,2]
[422859107,1779534656000,-589.42702515,0.00014942,2]
[422859105,1779534656000,-3215.04206956,0.000149,2]
[422859089,1779534656000,-218.0,0.00014702,2]
[422859103,1779534656000,-275.74040284,0.000149,2]
[422859099,1779534656000,-5800.0,0.00014891,2]
[422859092,1779534656000,-3998.0,0.000148,2]
[422859119,1779534656000,-415.60826713,0.00010963,2]
[422859094,1779534656000,-2100.0,0.000148,5]
[422859097,1779534656000,-251.78123832,0.00014872,2]
[422859095,1779534656000,-1186.29722886,0.0001482,2]
[422859108,1779534656000,-171.0,0.00014946,2]
[422859096,1779534656000,-18397.639998,0.0001487,2]
[422859111,1779534656000,-2211.56216774,0.0001499,2]
[422859101,1779534656000,-25000.0,0.000149,3]
[422859098,1779534656000,-5800.0,0.00014883,2]
[422859100,1779534656000,-5800.0,0.000149,2]
[422859102,1779534656000,-2100.0,0.000149,5]
[422859120,1779534823000,-200.0,7.727e-05,2]
[422859121,1779534824000,-200.0,7.727e-05,2]
[422859122,1779534825000,-200.0,7.727e-05,2]
[422859123,1779534826000,-200.0,7.727e-05,2]
[422859125,1779534827000,-90.352,7.8e-05,2]
[422859124,1779534827000,-109.648,7.727e-05,2]
[422859128,1779534828000,-200.0,7.8e-05,2]
[422859127,1779534828000,-200.0,7.8e-05,2]
[422859126,1779534828000,-200.0,7.8e-05,2]
[422859129,1779534829000,-200.0,7.8e-05,2]
[422859131,1779534829000,-90.352,7.8e-05,2]
[422859130,1779534829000,-109.648,7.8e-05,2]
[422859132,1779534833000,-124.96323495,7.8e-05,2]
[422859133,1779534833000,-75.03676505,7.812e-05,2]
[422859137,1779534835000,-116.25141124,7.862e-05,2]
[422859136,1779534835000,-83.74858876,7.842e-05,2]
[422859135,1779534835000,-66.25141124,7.842e-05,2]
[422859134,1779534835000,-133.74858876,7.812e-05,2]
[422859140,1779534836000,-200.0,7.863e-05,2]
[422859139,1779534836000,-16.25141124,7.863e-05,2]
[422859138,1779534836000,-183.74858876,7.862e-05,2]
[422859141,1779534837000,-200.0,7.863e-05,2]
[422859143,1779534838000,-200.0,7.863e-05,2]
[422859142,1779534838000,-200.0,7.863e-05,2]
[422859145,1779534839000,-200.0,7.863e-05,2]
[422859144,1779534839000,-200.0,7.863e-05,2]
[422859146,1779534840000,-200.0,7.863e-05,2]
[422859147,1779534840000,-200.0,7.863e-05,2]
[422859148,1779534840000,-200.0,7.863e-05,2]
[422859151,1779534841000,-200.0,7.863e-05,2]
[422859150,1779534841000,-200.0,7.863e-05,2]
[422859149,1779534841000,-200.0,7.863e-05,2]
[422859152,1779534842000,-200.0,7.863e-05,2]
[422859154,1779534842000,-200.0,7.863e-05,2]
[422859153,1779534842000,-200.0,7.863e-05,2]
[422859156,1779534843000,-200.0,7.863e-05,2]
[422859155,1779534843000,-200.0,7.863e-05,2]
[422859157,1779534844000,-200.0,7.863e-05,2]
[422859158,1779534845000,-200.0,7.863e-05,2]
[422859160,1779534846000,-200.0,7.863e-05,2]
[422859159,1779534846000,-200.0,7.863e-05,2]
[422859161,1779534847000,-200.0,7.863e-05,2]
[422859162,1779534848000,-200.0,7.863e-05,2]
[422859163,1779534849000,-200.0,7.863e-05,2]
[422859165,1779534854000,-200.0,7.863e-05,2]
[422859164,1779534854000,-200.0,7.863e-05,2]
[422859167,1779534855000,-200.0,7.863e-05,2]
[422859166,1779534855000,-200.0,7.863e-05,2]
[422859168,1779534856000,-200.0,7.863e-05,2]
[422859169,1779534857000,-200.0,7.863e-05,2]
[422859170,1779534858000,-200.0,7.863e-05,2]
[422859171,1779534859000,-200.0,7.863e-05,2]
[422859172,1779534860000,-200.0,7.863e-05,2]
[422859173,1779534862000,-200.0,7.863e-05,2]
[422859175,1779535102000,202.84,6.893e-05,2]
[422859176,1779535160000,500.0,0.00010958,7]
[422859178,1779535161000,345.94767076,0.00010958,9]
[422859177,1779535161000,500.0,0.00010958,8]
[422859179,1779535247000,158.88,3.871e-05,2]
[422859180,1779535247000,158.88,4.194e-05,2]
[422859182,1779535247000,158.88,4.839e-05,2]
[422859183,1779535247000,158.88,5.162e-05,2]
[422859184,1779535247000,158.88,5.484e-05,2]
[422859181,1779535247000,158.88,4.516e-05,2]
[422859188,1779535248000,158.88,6.775e-05,2]
[422859187,1779535248000,158.88,6.452e-05,2]
[422859186,1779535248000,158.88,6.129e-05,2]
[422859185,1779535248000,158.88,5.807e-05,2]
[422859189,1779535249000,158.88,7.097e-05,2]
[422859196,1779535424000,150.148,0.00028082,120]
[422859200,1779535503000,150.0,7.077e-05,2]
[422859202,1779535508000,251.37092639,7.077e-05,2]
[422859201,1779535508000,150.0,7.077e-05,2]
[422859203,1779535508000,150.0,7.077e-05,2]
[422859204,1779535509000,150.0,7.077e-05,2]
[422859205,1779535511000,150.0,7.077e-05,2]
[422859206,1779535513000,150.0,7.077e-05,2]
[422859209,1779535517000,150.0,7.077e-05,2]
[422859207,1779535517000,150.0,7.077e-05,2]
[422859210,1779535519000,150.0,7.077e-05,2]
[422859211,1779535524000,150.0,7.077e-05,2]
[422859212,1779535524000,150.0,7.105e-05,2]
[422859215,1779535524000,150.0,7.189e-05,2]
[422859214,1779535524000,150.0,7.161e-05,2]
[422859213,1779535524000,150.0,7.133e-05,2]
[422859224,1779535741000,1000.0,0.00028081,120]
[422859233,1779535832000,-150.0,7.208e-05,2]
[422859235,1779535832000,-250.0,7.212e-05,2]
[422859234,1779535832000,-150.0,7.208e-05,2]
[422859239,1779535832000,-0.28149329,7.273e-05,2]
[422859237,1779535832000,-150.0,7.234e-05,2]
[422859238,1779535832000,-150.0,7.245e-05,2]
[422859240,1779535832000,-149.71850671,7.273e-05,2]
[422859236,1779535832000,-150.0,7.217e-05,2]
[422859257,1779535833000,-150.0,7.47e-05,2]
[422859265,1779535833000,-150.0,7.548e-05,2]
[422859263,1779535833000,-1200.0,7.548e-05,2]
[422859266,1779535833000,-150.0,7.554e-05,2]
[422859262,1779535833000,-150.0,7.526e-05,2]
[422859260,1779535833000,-150.0,7.498e-05,2]
[422859261,1779535833000,-150.0,7.505e-05,2]
[422859269,1779535833000,-150.0,7.601e-05,2]
[422859259,1779535833000,-150.0,7.47e-05,2]
[422859258,1779535833000,-150.0,7.47e-05,2]
[422859256,1779535833000,-150.0,7.47e-05,2]
[422859250,1779535833000,-150.0,7.386e-05,2]
[422859244,1779535833000,-150.0,7.301e-05,2]
[422859248,1779535833000,-150.0,7.358e-05,2]
[422859253,1779535833000,-158.88,7.42e-05,2]
[422859252,1779535833000,-150.0,7.414e-05,2]
[422859249,1779535833000,-150.0,7.36e-05,2]
[422859251,1779535833000,-150.0,7.391e-05,2]
[422859246,1779535833000,-150.0,7.339e-05,2]
[422859255,1779535833000,-150.0,7.442e-05,2]
[422859247,1779535833000,-150.0,7.339e-05,2]
[422859243,1779535833000,-200.0,7.29e-05,2]
[422859264,1779535833000,-150.0,7.548e-05,2]
[422859245,1779535833000,-150.0,7.329e-05,2]
[422859241,1779535833000,-150.0,7.273e-05,2]
[422859242,1779535833000,-150.0,7.288e-05,2]
[422859254,1779535833000,-150.0,7.433e-05,2]
[422859268,1779535833000,-150.0,7.582e-05,2]
[422859279,1779535833000,-150.0,7.706e-05,2]
[422859270,1779535833000,-150.0,7.601e-05,2]
[422859297,1779535833000,-2348.35803606,7.763e-05,2]
[422859295,1779535833000,-17343.80647333,7.763e-05,2]
[422859296,1779535833000,-136530.18382331,7.763e-05,2]
[422859293,1779535833000,-152531.14090839,7.763e-05,2]
[422859290,1779535833000,-271.01670754,7.762e-05,2]
[422859294,1779535833000,-45004.62387052,7.763e-05,2]
[422859288,1779535833000,-198.96869902,7.762e-05,2]
[422859289,1779535833000,-500.0,7.762e-05,2]
[422859292,1779535833000,-286.33753237,7.762e-05,2]
[422859291,1779535833000,-500.0,7.762e-05,2]
[422859287,1779535833000,-265.45566261,7.762e-05,2]
[422859286,1779535833000,-500.0,7.762e-05,2]
[422859267,1779535833000,-150.0,7.577e-05,2]
[422859284,1779535833000,-158.88,7.743e-05,2]
[422859283,1779535833000,-150.0,7.732e-05,2]
[422859281,1779535833000,-150.0,7.723e-05,2]
[422859280,1779535833000,-257.0,7.721e-05,2]
[422859282,1779535833000,-150.0,7.732e-05,2]
[422859276,1779535833000,-150.0,7.666e-05,2]
[422859278,1779535833000,-1300.0,7.7e-05,2]
[422859277,1779535833000,-150.0,7.695e-05,2]
[422859272,1779535833000,-150.0,7.638e-05,2]
[422859275,1779535833000,-150.0,7.666e-05,2]
[422859274,1779535833000,-1852.42,7.659e-05,2]
[422859273,1779535833000,-150.0,7.649e-05,2]
[422859271,1779535833000,-150.0,7.61e-05,2]
[422859285,1779535833000,-150.0,7.751e-05,2]
[422859313,1779535840000,-585.4317508,7.762e-05,2]
[422859314,1779535840000,-163.2532492,7.762e-05,2]
[422859315,1779535840000,-128.48670457,7.762e-05,2]
[422859317,1779535840000,-335.68540234,7.762e-05,2]
[422859316,1779535840000,-500.0,7.762e-05,2]
[422859318,1779535840000,-397.29790962,7.762e-05,2]
[422859353,1779535841000,-340.0,7.863e-05,2]
[422859354,1779535841000,-6978.0,7.863e-05,2]
[422859358,1779535841000,-199.11874836,7.863e-05,2]
[422859366,1779535841000,-151.0,7.882e-05,2]
[422859357,1779535841000,-150.0,7.863e-05,2]
[422859363,1779535841000,-228.2432295,7.863e-05,2]
[422859361,1779535841000,-150.64808401,7.863e-05,2]
[422859360,1779535841000,-263.26296792,7.863e-05,2]
[422859359,1779535841000,-150.0,7.863e-05,2]
[422859362,1779535841000,-150.0,7.863e-05,2]
[422859365,1779535841000,-49907.44305879,7.874e-05,2]
[422859364,1779535841000,-17874.0,7.863e-05,2]
[422859369,1779535841000,-154.47727069,7.885e-05,2]
[422859367,1779535841000,-727.718,7.882e-05,2]
[422859378,1779535841000,-500.0,8.219e-05,2]
[422859368,1779535841000,-1116.93168818,7.884e-05,2]
[422859370,1779535841000,-395.49084711,7.888e-05,2]
[422859371,1779535841000,-3900.0,7.9e-05,2]
[422859376,1779535841000,-208.78535381,8.019e-05,2]
[422859377,1779535841000,-215.31523495,8.031e-05,2]
[422859372,1779535841000,-250.0,7.929e-05,2]
[422859375,1779535841000,-5300.0,8e-05,2]
[422859373,1779535841000,-250.0,7.929e-05,2]
[422859374,1779535841000,-19007.1393944,8e-05,2]
[422859379,1779535841000,-530.80212741,8.219e-05,2]
[422859382,1779535841000,-1680.0,8.303e-05,2]
[422859352,1779535841000,-150.0,7.835e-05,2]
[422859351,1779535841000,-150.0,7.807e-05,2]
[422859344,1779535841000,-500.0,7.762e-05,2]
[422859380,1779535841000,-1153.99,8.219e-05,2]
[422859325,1779535841000,-500.0,7.762e-05,2]
[422859327,1779535841000,-500.0,7.762e-05,2]
[422859324,1779535841000,-102.70209038,7.762e-05,2]
[422859328,1779535841000,-500.0,7.762e-05,2]
[422859329,1779535841000,-500.0,7.762e-05,2]
[422859326,1779535841000,-500.0,7.762e-05,2]
[422859330,1779535841000,-500.0,7.762e-05,2]
[422859332,1779535841000,-500.0,7.762e-05,2]
[422859335,1779535841000,-500.0,7.762e-05,2]
[422859334,1779535841000,-500.0,7.762e-05,2]
[422859333,1779535841000,-500.0,7.762e-05,2]
[422859336,1779535841000,-500.0,7.762e-05,2]
[422859341,1779535841000,-500.0,7.762e-05,2]
[422859339,1779535841000,-500.0,7.762e-05,2]
[422859340,1779535841000,-500.0,7.762e-05,2]
[422859337,1779535841000,-500.0,7.762e-05,2]
[422859342,1779535841000,-500.0,7.762e-05,2]
[422859338,1779535841000,-500.0,7.762e-05,2]
[422859331,1779535841000,-500.0,7.762e-05,2]
[422859343,1779535841000,-500.0,7.762e-05,2]
[422859345,1779535841000,-500.0,7.762e-05,2]
[422859356,1779535841000,-220.58459687,7.863e-05,2]
[422859355,1779535841000,-150.0,7.863e-05,2]
[422859348,1779535841000,-150.0,7.779e-05,2]
[422859349,1779535841000,-265.5107,7.785e-05,2]
[422859350,1779535841000,-2600.0,7.8e-05,2]
[422859347,1779535841000,-935778.81648839,7.763e-05,2]
[422859346,1779535841000,-500.0,7.762e-05,2]
[422859381,1779535841000,-500.0,8.219e-05,2]
[422859436,1779535841000,-86119.95,0.00010538,2]
[422859387,1779535841000,-3744.9,8.864e-05,2]
[422859413,1779535841000,-14018.16,9.67e-05,2]
[422859418,1779535841000,-1000.0,9.966e-05,2]
[422859419,1779535841000,-275.74040286,0.0001,2]
[422859428,1779535841000,-500.0,0.00010137,2]
[422859420,1779535841000,-163.47,0.0001,2]
[422859417,1779535841000,-86119.95,9.879e-05,2]
[422859423,1779535841000,-4000.0,0.00010027,2]
[422859421,1779535841000,-580.14502158,0.0001,2]
[422859422,1779535841000,-152.21,0.00010019,2]
[422859424,1779535841000,-3292.0,0.00010047,2]
[422859426,1779535841000,-2000.0,0.00010049,2]
[422859427,1779535841000,-425.31,0.00010089,2]
[422859412,1779535841000,-27698.0,9.67e-05,2]
[422859430,1779535841000,-16336.87068413,0.000103,2]
[422859429,1779535841000,-4000.0,0.00010278,2]
[422859432,1779535841000,-199.43891012,0.00010441,2]
[422859431,1779535841000,-500.0,0.00010411,2]
[422859440,1779535841000,-500.0,0.00010685,2]
[422859434,1779535841000,-4230.81,0.00010538,2]
[422859439,1779535841000,-923.0,0.00010541,5]
[422859438,1779535841000,-1397.0,0.00010541,5]
[422859435,1779535841000,-1762.61,0.00010538,2]
[422859437,1779535841000,-151.0,0.00010538,2]
[422859441,1779535841000,-46121.99950305,0.000107,2]
[422859442,1779535841000,-152.21,0.00010735,2]
[422859383,1779535841000,-255.0,8.303e-05,2]
[422859433,1779535841000,-4000.0,0.00010529,2]
[422859404,1779535841000,-2351.0,9.134e-05,2]
[422859425,1779535841000,-736.0,0.00010047,2]
[422859415,1779535841000,-4230.81,9.879e-05,2]
[422859410,1779535841000,-500.0,9.589e-05,2]
[422859386,1779535841000,-500.0,8.767e-05,2]
[422859385,1779535841000,-152.21,8.588e-05,2]
[422859389,1779535841000,-520.81,8.864e-05,2]
[422859390,1779535841000,-1425.91,8.864e-05,2]
[422859388,1779535841000,-3014.92,8.864e-05,2]
[422859392,1779535841000,-6231.56,8.864e-05,2]
[422859402,1779535841000,-425.31,8.968e-05,2]
[422859403,1779535841000,-500.0,9.041e-05,2]
[422859395,1779535841000,-365.2,8.864e-05,2]
[422859393,1779535841000,-16257.74,8.864e-05,2]
[422859391,1779535841000,-2772.52,8.864e-05,2]
[422859394,1779535841000,-9999.99,8.864e-05,2]
[422859396,1779535841000,-150.99,8.864e-05,2]
[422859384,1779535841000,-500.0,8.493e-05,2]
[422859407,1779535841000,-152.21,9.303e-05,2]
[422859397,1779535841000,-10600.71,8.864e-05,2]
[422859406,1779535841000,-167.17,9.255e-05,2]
[422859408,1779535841000,-500.0,9.315e-05,2]
[422859411,1779535841000,-9999.99,9.67e-05,2]
[422859416,1779535841000,-1762.61,9.879e-05,2]
[422859414,1779535841000,-500.0,9.863e-05,2]
[422859405,1779535841000,-433.0,9.134e-05,2]
[422859401,1779535841000,-2000.0,8.933e-05,2]
[422859399,1779535841000,-9999.99,8.864e-05,2]
[422859400,1779535841000,-299.99,8.864e-05,2]
[422859398,1779535841000,-23761.77,8.864e-05,2]
[422859409,1779535841000,-250.0,9.524e-05,2]
[422859482,1779535842000,-2000.0,0.00011166,2]
[422859485,1779535842000,-200.0,0.00011357,2]
[422859487,1779535842000,-1153.99,0.00011507,2]
[422859480,1779535842000,-5077.47442992,0.00011099,2]
[422859481,1779535842000,-5077.47442992,0.00011099,2]
[422859471,1779535842000,-4609.0,0.00011052,2]
[422859474,1779535842000,-1672.75403578,0.00011099,2]
[422859475,1779535842000,-1672.75403578,0.00011099,2]
[422859473,1779535842000,-1672.75403578,0.00011099,2]
[422859472,1779535842000,-1672.75403584,0.00011099,2]
[422859483,1779535842000,-425.31,0.0001121,2]
[422859478,1779535842000,-5077.47442992,0.00011099,2]
[422859484,1779535842000,-275.74040284,0.00011343,2]
[422859502,1779535842000,-500.0,0.00011818,2]
[422859486,1779535842000,-152.21,0.0001145,2]
[422859490,1779535842000,-1672.75403578,0.00011698,2]
[422859479,1779535842000,-5077.47442992,0.00011099,2]
[422859489,1779535842000,-5077.47442992,0.00011698,2]
[422859492,1779535842000,-300.0,0.00011817,2]
[422859491,1779535842000,-3531.78124851,0.00011805,2]
[422859503,1779535842000,-500.0,0.00011818,2]
[422859501,1779535842000,-500.0,0.00011818,2]
[422859494,1779535842000,-666.0,0.00011817,2]
[422859500,1779535842000,-500.0,0.00011818,2]
[422859493,1779535842000,-300.0,0.00011817,2]
[422859499,1779535842000,-500.0,0.00011818,2]
[422859488,1779535842000,-151.0,0.00011511,2]
[422859468,1779535842000,-246.83671021,0.00011,5]
[422859443,1779535842000,-4000.0,0.00010779,2]
[422859467,1779535842000,-152.0,0.00011,3]
[422859445,1779535842000,-2616.400311,0.00010849,2]
[422859444,1779535842000,-2616.400311,0.00010849,2]
[422859446,1779535842000,-2616.400311,0.00010849,2]
[422859448,1779535842000,-152.0,0.0001089,3]
[422859449,1779535842000,-151.0,0.000109,2]
[422859451,1779535842000,-151.0,0.000109,2]
[422859447,1779535842000,-2616.400311,0.00010849,2]
[422859450,1779535842000,-152.744763,0.000109,2]
[422859454,1779535842000,-3531.78124851,0.000109,2]
[422859452,1779535842000,-151.0,0.000109,2]
[422859455,1779535842000,-3531.78124851,0.000109,2]
[422859460,1779535842000,-500.0,0.00010958,5]
[422859469,1779535842000,-4000.0,0.0001103,2]
[422859456,1779535842000,-3531.78124851,0.000109,2]
[422859459,1779535842000,-500.0,0.00010958,4]
[422859457,1779535842000,-500.0,0.00010958,2]
[422859461,1779535842000,-500.0,0.00010958,6]
[422859453,1779535842000,-3531.78124858,0.000109,2]
[422859462,1779535842000,-200.0,0.00010959,2]
[422859463,1779535842000,-150.0,0.00010959,2]
[422859464,1779535842000,-620.85690103,0.00010959,2]
[422859466,1779535842000,-150.0,0.00010959,2]
[422859476,1779535842000,-1672.75403578,0.00011099,2]
[422859465,1779535842000,-151.0,0.00010959,2]
[422859477,1779535842000,-5077.47442993,0.00011099,2]
[422859470,1779535842000,-492.0,0.00011051,2]
[422859458,1779535842000,-500.0,0.00010958,3]
[422859498,1779535842000,-206.64800166,0.00011818,2]
[422859495,1779535842000,-500.0,0.00011818,2]
[422859496,1779535842000,-500.0,0.00011818,2]
[422859532,1779535842000,-500.0,0.00011818,2]
[422859537,1779535842000,-990.0,0.00011818,2]
[422859536,1779535842000,-500.0,0.00011818,2]
[422859538,1779535842000,-500.0,0.00011818,2]
[422859542,1779535842000,-500.0,0.00011818,2]
[422859539,1779535842000,-990.0,0.00011818,2]
[422859549,1779535842000,-500.0,0.00011818,2]
[422859550,1779535842000,-500.0,0.00011818,2]
[422859543,1779535842000,-500.0,0.00011818,2]
[422859544,1779535842000,-500.0,0.00011818,2]
[422859547,1779535842000,-500.0,0.00011818,2]
[422859548,1779535842000,-990.0,0.00011818,2]
[422859540,1779535842000,-500.0,0.00011818,2]
[422859541,1779535842000,-500.0,0.00011818,2]
[422859552,1779535842000,-500.0,0.00011818,2]
[422859551,1779535842000,-500.0,0.00011818,2]
[422859553,1779535842000,-500.0,0.00011818,2]
[422859559,1779535842000,-500.0,0.00011818,2]
[422859554,1779535842000,-500.0,0.00011818,2]
[422859556,1779535842000,-990.0,0.00011818,2]
[422859562,1779535842000,-500.0,0.00011818,2]
[422859560,1779535842000,-500.0,0.00011818,2]
[422859558,1779535842000,-500.0,0.00011818,2]
[422859561,1779535842000,-505.7497438,0.00011818,2]
[422859557,1779535842000,-500.0,0.00011818,2]
[422859555,1779535842000,-500.0,0.00011818,2]
[422859497,1779535842000,-262.52138871,0.00011818,2]
[422859530,1779535842000,-500.0,0.00011818,2]
[422859531,1779535842000,-990.0,0.00011818,2]
[422859563,1779535842000,-226.18441098,0.00011818,2]
[422859535,1779535842000,-990.0,0.00011818,2]
[422859529,1779535842000,-990.0,0.00011818,2]
[422859504,1779535842000,-500.0,0.00011818,2]
[422859513,1779535842000,-500.0,0.00011818,2]
[422859506,1779535842000,-500.0,0.00011818,2]
[422859514,1779535842000,-500.0,0.00011818,2]
[422859508,1779535842000,-500.0,0.00011818,2]
[422859510,1779535842000,-500.0,0.00011818,2]
[422859512,1779535842000,-500.0,0.00011818,2]
[422859507,1779535842000,-500.0,0.00011818,2]
[422859515,1779535842000,-500.0,0.00011818,2]
[422859509,1779535842000,-500.0,0.00011818,2]
[422859511,1779535842000,-484.68457076,0.00011818,2]
[422859516,1779535842000,-500.0,0.00011818,2]
[422859505,1779535842000,-621.98422306,0.00011818,2]
[422859520,1779535842000,-990.0,0.00011818,2]
[422859525,1779535842000,-990.0,0.00011818,2]
[422859534,1779535842000,-500.0,0.00011818,2]
[422859533,1779535842000,-990.0,0.00011818,2]
[422859527,1779535842000,-990.0,0.00011818,2]
[422859521,1779535842000,-990.0,0.00011818,2]
[422859528,1779535842000,-990.0,0.00011818,2]
[422859523,1779535842000,-990.0,0.00011818,2]
[422859524,1779535842000,-990.0,0.00011818,2]
[422859522,1779535842000,-990.0,0.00011818,2]
[422859517,1779535842000,-500.0,0.00011818,2]
[422859519,1779535842000,-628.0,0.00011818,2]
[422859518,1779535842000,-500.0,0.00011818,2]
[422859526,1779535842000,-990.0,0.00011818,2]
[422859602,1779535843000,-522.0,0.00011818,2]
[422859603,1779535843000,-500.0,0.00011818,2]
[422859601,1779535843000,-500.0,0.00011818,2]
[422859609,1779535843000,-500.0,0.00011818,2]
[422859592,1779535843000,-522.0,0.00011818,2]
[422859600,1779535843000,-522.0,0.00011818,2]
[422859598,1779535843000,-522.0,0.00011818,2]
[422859588,1779535843000,-161.14601318,0.00011818,2]
[422859597,1779535843000,-522.0,0.00011818,2]
[422859596,1779535843000,-522.0,0.00011818,2]
[422859608,1779535843000,-522.0,0.00011818,2]
[422859599,1779535843000,-522.0,0.00011818,2]
[422859611,1779535843000,-531.00866086,0.00011818,2]
[422859606,1779535843000,-500.0,0.00011818,2]
[422859607,1779535843000,-1494.0,0.00011818,2]
[422859604,1779535843000,-1494.0,0.00011818,2]
[422859619,1779535843000,-1494.0,0.00011818,2]
[422859620,1779535843000,-500.0,0.00011818,2]
[422859610,1779535843000,-1494.0,0.00011818,2]
[422859612,1779535843000,-500.0,0.00011818,2]
[422859616,1779535843000,-500.0,0.00011818,2]
[422859618,1779535843000,-500.0,0.00011818,2]
[422859613,1779535843000,-1494.0,0.00011818,2]
[422859615,1779535843000,-1494.0,0.00011818,2]
[422859594,1779535843000,-522.0,0.00011818,2]
[422859617,1779535843000,-1494.0,0.00011818,2]
[422859605,1779535843000,-522.0,0.00011818,2]
[422859595,1779535843000,-522.0,0.00011818,2]
[422859575,1779535843000,-500.0,0.00011818,2]
[422859589,1779535843000,-522.0,0.00011818,2]
[422859622,1779535843000,-500.0,0.00011818,2]
[422859572,1779535843000,-500.0,0.00011818,2]
[422859573,1779535843000,-522.0,0.00011818,2]
[422859566,1779535843000,-522.0,0.00011818,2]
[422859574,1779535843000,-522.0,0.00011818,2]
[422859564,1779535843000,-990.0,0.00011818,2]
[422859565,1779535843000,-522.0,0.00011818,2]